[Event "Chinese Chess League Men 2019"]
[Site "Daqing"]
[Date "2019.06.24"]
[Round "6.12"]
[White "Lin, Peisen"]
[Black "Yuan, Qingyu"]
[Result "1/2-1/2"]
[ECO "C95"]
[WhiteElo "1988"]
[BlackElo "2355"]
[Annotator "NA RC"]
[PlyCount "97"]
[EventDate "2019.06.19"]
[EventType "team-tourn"]
[EventCountry "CHN"]
[SourceTitle "playchess.com"]
[Source "ChessBase"]
[SourceQuality "1"]
[TimeControl "5400+30"]

1. e4 {[%emt 0:00:00]} e5 {[%emt 0:00:00]} 2. Nf3 {[%emt 0:00:00]} Nc6 {[%emt 0:00:00]} 3. Bb5 {[%emt 0:00:00]} a6 {[%emt 0:00:38]} 4. Ba4 {[%emt 0:00:00]} Nf6 {[%emt 0:00:03]} 5. O-O {[%emt 0:00:07]} Be7 {[%emt 0:00:02]} 6. Re1 {[%emt 0:00:10]} b5 {[%emt 0:00:14]} 7. Bb3 {[%emt 0:00:07]} d6 {[%emt 0:00:04]} 8. c3 {[%emt 0:00:12]} O-O {[%emt 0:00:05]} 9. h3 {[%emt 0:00:07]} Nb8 {[%emt 0:00:04]} 10. d4 {[%emt 0:00:31]} Nbd7 {[%emt 0:00:05]} 11. Nbd2 {[%emt 0:00:27]} Bb7 {[%emt 0:00:23]} 12. Bc2 {[%emt 0:00:27]} Re8 {[%emt 0:00:03]} 13. b4 {[%emt 0:01:42]} a5 {[%emt 0:03:23]} 14. a4 {[%emt 0:15:12]} axb4 {[%emt 0:03:22]} 15. cxb4 {[%emt 0:00:10]} bxa4 {[%emt 0:06:46]} 16. Rxa4 {[%emt 0:02:26]} exd4 {[%emt 0:06:00]} 17. Nxd4 {[%emt 0:00:56]} Bf8 {[%emt 0:00:19]} 18. Rxa8 {[%emt 0:30:09]} Qxa8 {[%emt 0:02:40]} 19. Nb5 {[%emt 0:09:42]} Qb8 {[%emt 0:02:17]} 20. Nc3 {[%emt 0:02:19]} Bc6 {[%emt 0:04:21]} 21. Ba3 {[%emt 0:01:29]} Qa7 {[%emt 0:00:34]} 22. Nc4 {[%emt 0:02:15]} Ne5 {[%emt 0:12:06]} 23. Na5 {[%emt 0:02:37]} Ba8 {[%emt 0:02:36]} 24. Nd5 {[%emt 0:07:48]} Nfd7 {[%emt 0:07:00]} 25. Bb2 {[%emt 0:03:53]} c6 {[%emt 0:07:48]} 26. Ne3 {[%emt 0:01:55]} d5 {[%emt 0:02:07]} 27. Bc3 {[%emt 0:02:49]} c5 {[%emt 0:03:01]} 28. exd5 {[%emt 0:07:34]} cxb4 {[%emt 0:00:13]} 29. Bxe5 {[%emt 0:00:29]} Nxe5 {[%emt 0:04:32]} 30. Nec4 {[%emt 0:01:50]} Qb8 {[%emt 0:00:17]} 31. Ba4 {[%emt 0:03:44]} Nf3+ {[%emt 0:07:10]} 32. gxf3 {[%emt 0:00:15]} Rxe1+ {[%emt 0:00:03]} 33. Qxe1 {[%emt 0:00:08]} Bxd5 {[%emt 0:00:03]} 34. Qe3 {[%emt 0:01:26]} Be6 {[%emt 0:01:47]} 35. Bb3 {[%emt 0:01:38]} Qd8 {[%emt 0:01:44]} 36. Nc6 {[%emt 0:01:49]} Qh4 {[%emt 0:03:33]} 37. N4e5 {[%emt 0:00:37]} Qxh3 {[%emt 0:00:05]} 38. Nd8 {[%emt 0:01:11]} Qf5 {[%emt 0:02:49]} 39. Nxe6 {[%emt 0:00:44]} fxe6 {[%emt 0:00:02]} 40. Nc6 {[%emt 0:00:20]} Qg6+ {[%emt 0:00:56]} 41. Kf1 {[%emt 0:00:10]} Qb1+ {[%emt 0:00:02]} 42. Kg2 {[%emt 0:00:13]} Qg6+ {[%emt 0:00:01]} 43. Kf1 {[%emt 0:00:57]} Qb1+ {[%emt 0:00:04]} 44. Ke2 {[%emt 0:00:38]} Qb2+ {[%emt 0:00:03]} 45. Ke1 {[%emt 0:00:28]} Qb1+ {[%emt 0:00:31]} 46. Ke2 {[%emt 0:00:36]} Qb2+ {[%emt 0:00:07]} 47. Kd1 {[%emt 0:00:25]} Qb1+ {[%emt 0:00:17]} 48. Kd2 {[%emt 0:00:36]} Qb2+ {[%emt 0:00:06]} 49. Ke1 {[%emt 0:00:34]} 1/2-1/2

[Event "Chinese Chess League Men 2019"]
[Site "Daqing"]
[Date "2019.06.25"]
[Round "7.2"]
[White "Xu, Yi"]
[Black "Li, Yankai"]
[Result "1-0"]
[ECO "C91"]
[WhiteElo "2526"]
[BlackElo "2432"]
[Annotator "ChessBase"]
[PlyCount "69"]
[EventDate "2019.06.19"]
[EventType "team-tourn"]
[EventCountry "CHN"]
[SourceTitle "playchess.com"]
[Source "ChessBase"]
[SourceQuality "1"]
[TimeControl "5400+30"]

1. e4 {[%emt 0:00:00]} e5 {[%emt 0:00:00]} 2. Nf3 {[%emt 0:00:00]} Nc6 {[%emt 0:00:00]} 3. Bb5 {[%emt 0:00:36]} a6 {[%emt 0:00:00]} 4. Ba4 {[%emt 0:00:05]} Nf6 {[%emt 0:00:00]} 5. O-O {[%emt 0:00:16]} Be7 {[%emt 0:00:02]} 6. Re1 {[%emt 0:01:06]} b5 {[%emt 0:00:03]} 7. Bb3 {[%emt 0:00:04]} O-O {[%emt 0:00:04]} 8. d4 {[%emt 0:00:50]} d6 {[%emt 0:01:59]} 9. c3 {[%emt 0:00:07]} Bg4 {[%emt 0:00:12]} 10. Be3 {[%emt 0:00:20]} d5 {[%emt 0:00:56]} 11. exd5 {[%emt 0:01:31]} exd4 {[%emt 0:01:16]} 12. Bxd4 {[%emt 0:04:47]} Nxd4 {[%emt 0:00:05]} 13. cxd4 {[%emt 0:00:08]} Bb4 {[%emt 0:00:03]} 14. Nc3 {[%emt 0:00:10]} a5 {[%emt 0:00:02]} 15. a3 {[%emt 0:09:15]} Bxc3 {[%emt 0:00:10]} 16. bxc3 {[%emt 0:00:05]} a4 {[%emt 0:00:41]} 17. Ba2 {[%emt 0:09:50]} Qd6 {[%emt 0:05:39]} 18. h3 {[%emt 0:07:24]} Bxf3 {[%emt 0:55:25]} 19. Qxf3 {[%emt 0:01:47]} Rfd8 {[%emt 0:00:03]} 20. c4 {[%emt 0:04:45]} bxc4 {[%emt 0:00:03]} 21. Bxc4 {[%emt 0:00:10]} g6 {[%emt 0:09:27]} 22. Re3 {[%emt 0:05:11]} Re8 {[%emt 0:04:11]} 23. Rae1 {[%emt 0:04:01]} Kg7 {[%emt 0:03:14]} 24. Re5 {[%emt 0:04:54]} Rab8 {[%emt 0:00:18]} 25. g4 {[%emt 0:06:07]} h6 {[%emt 0:00:03]} 26. h4 {[%emt 0:01:37]} Rf8 {[%emt 0:00:02]} 27. g5 {[%emt 0:00:35]} hxg5 {[%emt 0:00:02]} 28. hxg5 {[%emt 0:00:05]} Nh5 {[%emt 0:00:08]} 29. Re7 {[%emt 0:08:53]} Rb2 {[%emt 0:02:53]} 30. Qe4 {[%emt 0:06:32]} Qxa3 {[%emt 0:03:52]} 31. d6 {[%emt 0:03:39]} Qxd6 {[%emt 0:04:22]} 32. Bxf7 {[%emt 0:01:04]} Nf4 {[%emt 0:00:02]} 33. Bxg6+ {[%emt 0:02:52]} Kg8 {[%emt 0:00:02]} 34. Bh7+ {[%emt 0:01:46]} Kh8 {[%emt 0:00:03]} 35. Qh1 {[%emt 0:00:06]} 1-0

[Event "Chinese Chess League Men 2019"]
[Site "Daqing"]
[Date "2019.06.25"]
[Round "7.4"]
[White "Xu, Yining"]
[Black "Zhao, Zhouqiao CHN"]
[Result "1-0"]
[ECO "C88"]
[WhiteElo "2359"]
[BlackElo "2215"]
[Annotator "NA"]
[PlyCount "95"]
[EventDate "2019.06.19"]
[EventType "team-tourn"]
[EventCountry "CHN"]
[SourceTitle "playchess.com"]
[Source "ChessBase"]
[SourceQuality "1"]
[TimeControl "5400+30"]

1. e4 {[%emt 0:00:00]} e5 {[%emt 0:00:00]} 2. Nf3 {[%emt 0:00:04]} Nc6 {[%emt 0:00:09]} 3. Bb5 {[%emt 0:00:34]} a6 {[%emt 0:01:10]} 4. Ba4 {[%emt 0:00:09]} Nf6 {[%emt 0:00:05]} 5. O-O {[%emt 0:01:47]} Be7 {[%emt 0:01:08]} 6. d3 {[%emt 0:00:39]} b5 {[%emt 0:02:10]} 7. Bb3 {[%emt 0:00:08]} d6 {[%emt 0:00:21]} 8. a4 {[%emt 0:02:21]} Bb7 {[%emt 0:03:55]} 9. Nbd2 {[%emt 0:04:18]} O-O {[%emt 0:03:35]} 10. Re1 {[%emt 0:00:08]} Nd7 {[%emt 0:00:20]} 11. c3 {[%emt 0:03:54]} Bf6 {[%emt 0:08:23]} 12. Nf1 {[%emt 0:04:19]} Na5 {[%emt 0:05:51]} 13. Ba2 {[%emt 0:01:49]} c5 {[%emt 0:03:20]} 14. Ne3 {[%emt 0:01:57]} Nb6 {[%emt 0:01:40]} 15. b4 {[%emt 0:06:16]} cxb4 {[%emt 0:04:13]} 16. cxb4 {[%emt 0:00:06]} Nc6 {[%emt 0:00:03]} 17. a5 {[%emt 0:00:40]} Nd7 {[%emt 0:03:41]} 18. Bd2 {[%emt 0:15:25]} Ne7 {[%emt 0:04:24]} 19. Rc1 {[%emt 0:00:39]} Rc8 {[%emt 0:18:37]} 20. Qb3 {[%emt 0:00:06]} h6 {[%emt 0:00:38]} 21. h4 {[%emt 0:03:50]} Kh7 {[%emt 0:02:26]} 22. Rxc8 {[%emt 0:12:04]} Qxc8 {[%emt 0:05:14]} 23. Rc1 {[%emt 0:01:54]} Qb8 {[%emt 0:00:30]} 24. h5 {[%emt 0:03:38]} Ng8 {[%emt 0:16:52]} 25. Qc2 {[%emt 0:02:16]} Bd8 {[%emt 0:09:41]} 26. Bd5 {[%emt 0:04:30]} Ne7 {[%emt 0:00:47]} 27. Bxb7 {[%emt 0:00:26]} Qxb7 {[%emt 0:00:01]} 28. Nh4 {[%emt 0:02:47]} g6 {[%emt 0:03:49]} 29. Qb3 {[%emt 0:05:07]} Nc6 {[%emt 0:00:56]} 30. Nf3 {[%emt 0:04:27]} Ndb8 {[%emt 0:00:25]} 31. Ng4 {[%emt 0:10:03]} g5 {[%emt 0:00:01]} 32. Qc2 {[%emt 0:00:42]} f6 {[%emt 0:00:48]} 33. Ne3 {[%emt 0:02:33]} Qf7 {[%emt 0:00:34]} 34. g4 {[%emt 0:01:02]} Qe6 {[%emt 0:00:35]} 35. Nf5 {[%emt 0:00:22]} Rf7 {[%emt 0:00:22]} 36. Qb2 {[%emt 0:01:37]} Rc7 {[%emt 0:00:28]} 37. Nh2 {[%emt 0:01:21]} Na7 {[%emt 0:00:37]} 38. Rxc7+ Bxc7 {[%emt 0:00:01]} 39. Nf1 {[%emt 0:00:31]} Nac6 {[%emt 0:00:50]} 40. N1e3 {[%emt 0:00:09]} Bd8 {[%emt 0:00:31]} 41. Nd5 {[%emt 0:01:23]} Nd4 {[%emt 0:00:34]} 42. Be3 {[%emt 0:01:09]} Nxf5 {[%emt 0:00:33]} 43. gxf5 {[%emt 0:00:02]} Qe8 {[%emt 0:00:19]} 44. Bb6 {[%emt 0:01:32]} Qxh5 {[%emt 0:00:41]} 45. Qc2 {[%emt 0:01:47]} Qe8 {[%emt 0:00:40]} 46. Qc8 {[%emt 0:00:25]} Qh5 {[%emt 0:00:20]} 47. Ne3 {[%emt 0:00:06]} Be7 {[%emt 0:00:35]} 48. Qxb8 {[%emt 0:00:15]} 1-0

[Event "Chinese Chess League Men 2019"]
[Site "Daqing"]
[Date "2019.06.25"]
[Round "7.8"]
[White "Yuan, Qingyu"]
[Black "Lin, Yi"]
[Result "1/2-1/2"]
[ECO "D71"]
[WhiteElo "2355"]
[BlackElo "2396"]
[Annotator "NA"]
[PlyCount "42"]
[EventDate "2019.06.19"]
[EventType "team-tourn"]
[EventCountry "CHN"]
[SourceTitle "playchess.com"]
[Source "ChessBase"]
[SourceQuality "1"]
[TimeControl "5400+30"]

1. d4 {[%emt 0:00:06]} Nf6 {[%emt 0:00:00]} 2. c4 {[%emt 0:00:00]} g6 {[%emt 0:00:00]} 3. g3 {[%emt 0:00:30]} c6 {[%emt 0:00:04]} 4. Bg2 {[%emt 0:00:04]} d5 {[%emt 0:00:09]} 5. Qa4 {[%emt 0:00:19]} Nfd7 {[%emt 0:02:13]} 6. cxd5 {[%emt 0:00:38]} Nb6 {[%emt 0:00:05]} 7. Qd1 {[%emt 0:00:08]} cxd5 {[%emt 0:00:06]} 8. Nc3 {[%emt 0:00:12]} Nc6 {[%emt 0:00:21]} 9. e3 {[%emt 0:00:14]} Bf5 {[%emt 0:00:17]} 10. Nh3 {[%emt 0:01:20]} Bxh3 {[%emt 0:12:09]} 11. Bxh3 {[%emt 0:01:03]} Bg7 {[%emt 0:00:11]} 12. b3 {[%emt 0:07:52]} O-O {[%emt 0:01:03]} 13. O-O {[%emt 0:00:29]} e6 {[%emt 0:03:16]} 14. Ba3 {[%emt 0:03:52]} Re8 {[%emt 0:04:54]} 15. Rc1 {[%emt 0:00:50]} Nd7 {[%emt 0:11:49]} 16. Na4 {[%emt 0:13:27]} Qa5 {[%emt 0:05:33]} 17. Bb2 {[%emt 0:09:32]} Rac8 {[%emt 0:02:49]} 18. Bc3 {[%emt 0:04:02]} Qc7 {[%emt 0:05:06]} 19. Bb2 {[%emt 0:01:40]} Qa5 {[%emt 0:00:06]} 20. Bc3 {[%emt 0:00:01]} Qc7 {[%emt 0:00:04]} 21. Bb2 {[%emt 0:00:04]} Qa5 {[%emt 0:00:03]} 1/2-1/2

[Event "Chinese Chess League Men 2019"]
[Site "Daqing"]
[Date "2019.06.26"]
[Round "8.3"]
[White "Xiu, Deshun"]
[Black "Qu, Yanqiao"]
[Result "1-0"]
[ECO "E05"]
[WhiteElo "2538"]
[BlackElo "2140"]
[Annotator "RC"]
[PlyCount "89"]
[EventDate "2019.06.19"]
[EventType "team-tourn"]
[EventCountry "CHN"]
[SourceTitle "playchess.com"]
[Source "ChessBase"]
[SourceQuality "1"]
[TimeControl "5400+30"]

1. d4 {[%emt 0:00:00]} d5 {[%emt 0:00:27]} 2. c4 {[%emt 0:00:00]} e6 {[%emt 0:00:35]} 3. Nf3 {[%emt 0:00:14]} Nf6 {[%emt 0:01:26]} 4. g3 {[%emt 0:00:16]} Be7 {[%emt 0:00:06]} 5. Bg2 {[%emt 0:00:07]} O-O {[%emt 0:00:11]} 6. O-O {[%emt 0:00:47]} dxc4 {[%emt 0:00:04]} 7. Ne5 {[%emt 0:00:15]} Nc6 {[%emt 0:02:22]} 8. Bxc6 {[%emt 0:03:38]} bxc6 {[%emt 0:01:00]} 9. Nxc6 {[%emt 0:00:07]} Qe8 {[%emt 0:00:07]} 10. Nxe7+ {[%emt 0:00:07]} Qxe7 {[%emt 0:00:07]} 11. Qc2 {[%emt 0:00:07]} e5 {[%emt 0:06:08]} 12. Rd1 {[%emt 0:01:09]} exd4 {[%emt 0:12:05]} 13. Rxd4 {[%emt 0:00:40]} Be6 {[%emt 0:07:13]} 14. Nc3 {[%emt 0:14:53]} Rfd8 {[%emt 0:01:37]} 15. Rxd8+ {[%emt 0:00:36]} Rxd8 {[%emt 0:00:04]} 16. Bg5 {[%emt 0:00:16]} h6 {[%emt 0:01:31]} 17. Bxf6 {[%emt 0:00:15]} Qxf6 {[%emt 0:00:02]} 18. Rd1 {[%emt 0:00:22]} Rb8 {[%emt 0:12:19]} 19. Rd2 {[%emt 0:07:09]} Qe5 {[%emt 0:06:11]} 20. Qe4 {[%emt 0:03:47]} Qc5 {[%emt 0:05:31]} 21. h4 {[%emt 0:04:38]} a6 {[%emt 0:10:12]} 22. Kg2 {[%emt 0:04:41]} Re8 {[%emt 0:02:37]} 23. Qd4 {[%emt 0:03:37]} Qf5 {[%emt 0:02:02]} 24. Kg1 {[%emt 0:00:22]} f6 {[%emt 0:05:50]} 25. Qa7 {[%emt 0:07:22]} Qa5 {[%emt 0:00:55]} 26. Qb7 {[%emt 0:00:05]} Kf7 {[%emt 0:08:37]} 27. Rd6 {[%emt 0:07:53]} Bc8 {[%emt 0:06:54]} 28. Qd5+ {[%emt 0:01:40]} Qxd5 {[%emt 0:00:01]} 29. Rxd5 {[%emt 0:00:02]} Be6 {[%emt 0:02:32]} 30. Rc5 {[%emt 0:01:45]} Rb8 {[%emt 0:00:49]} 31. Rxc7+ {[%emt 0:00:08]} Kf8 {[%emt 0:00:23]} 32. Rc6 {[%emt 0:01:51]} Ke7 {[%emt 0:00:32]} 33. Na4 {[%emt 0:05:36]} Bd7 {[%emt 0:03:45]} 34. Rxc4 {[%emt 0:00:45]} Bxa4 {[%emt 0:00:29]} 35. Rxa4 {[%emt 0:00:07]} Rxb2 {[%emt 0:00:03]} 36. e4 {[%emt 0:02:38]} Rb6 {[%emt 0:00:12]} 37. Ra5 {[%emt 0:00:09]} g6 {[%emt 0:00:42]} 38. h5 {[%emt 0:01:58]} Kf7 {[%emt 0:00:30]} 39. hxg6+ Kxg6 {[%emt 0:00:01]} 40. g4 {[%emt 0:02:53]} Rb4 {[%emt 0:01:01]} 41. f3 {[%emt 0:00:52]} Rb2 {[%emt 0:00:27]} 42. Kf1 {[%emt 0:00:07]} Rc2 {[%emt 0:00:19]} 43. Rxa6 {[%emt 0:01:10]} Kg5 {[%emt 0:00:02]} 44. a4 {[%emt 0:01:17]} Ra2 {[%emt 0:00:41]} 45. a5 {[%emt 0:00:09]} 1-0

[Event "Chinese Chess League Men 2019"]
[Site "Daqing"]
[Date "2019.06.26"]
[Round "8.9"]
[White "Xu, Xiangyu"]
[Black "Dai, Changren"]
[Result "1/2-1/2"]
[ECO "E04"]
[WhiteElo "2583"]
[BlackElo "2480"]
[Annotator "RC"]
[PlyCount "50"]
[EventDate "2019.06.19"]
[EventType "team-tourn"]
[EventCountry "CHN"]
[SourceTitle "playchess.com"]
[Source "ChessBase"]
[SourceQuality "1"]
[TimeControl "5400+30"]

1. d4 {[%emt 0:00:00]} Nf6 {[%emt 0:00:00]} 2. c4 {[%emt 0:00:00]} e6 {[%emt 0:00:00]} 3. g3 {[%emt 0:00:00]} d5 {[%emt 0:00:00]} 4. Bg2 {[%emt 0:00:02]} dxc4 {[%emt 0:00:16]} 5. Nf3 {[%emt 0:00:08]} a6 {[%emt 0:00:05]} 6. Ne5 {[%emt 0:07:06]} Bb4+ {[%emt 0:00:36]} 7. Nc3 {[%emt 0:01:28]} Nd5 {[%emt 0:00:06]} 8. O-O {[%emt 0:09:02]} Nxc3 {[%emt 0:02:45]} 9. bxc3 {[%emt 0:00:27]} Bxc3 {[%emt 0:00:05]} 10. Rb1 {[%emt 0:00:37]} Qxd4 {[%emt 0:00:39]} 11. Qa4+ {[%emt 0:01:36]} b5 {[%emt 0:00:30]} 12. Qa3 {[%emt 0:00:57]} Qxe5 {[%emt 0:02:44]} 13. Bf4 {[%emt 0:04:53]} Qf6 {[%emt 0:02:37]} 14. Bxc7 {[%emt 0:02:03]} b4 {[%emt 0:06:39]} 15. Rxb4 {[%emt 0:02:09]} Bxb4 {[%emt 0:01:32]} 16. Qxb4 {[%emt 0:00:13]} a5 {[%emt 0:04:17]} 17. Qb5+ {[%emt 0:02:25]} Bd7 {[%emt 0:02:44]} 18. Qxc4 {[%emt 0:00:21]} Ra6 {[%emt 0:01:32]} 19. Bxb8 {[%emt 0:00:15]} Rb6 {[%emt 0:01:49]} 20. Bf4 {[%emt 0:00:33]} Rb4 {[%emt 0:02:26]} 21. Qc7 {[%emt 0:00:23]} Qd8 {[%emt 0:00:20]} 22. Qa7 {[%emt 0:00:43]} Qb6 {[%emt 0:00:46]} 23. Qa8+ {[%emt 0:00:11]} Qd8 {[%emt 0:00:06]} 24. Qa7 {[%emt 0:00:05]} Qb6 {[%emt 0:00:05]} 25. Qa8+ {[%emt 0:00:08]} Qd8 {[%emt 0:00:05]} 1/2-1/2

[Event "Chinese Chess League Men 2019"]
[Site "Daqing"]
[Date "2019.06.27"]
[Round "9.1"]
[White "Liu, Zexu"]
[Black "Yu, Yangyi"]
[Result "0-1"]
[ECO "A48"]
[WhiteElo "2121"]
[BlackElo "2738"]
[Annotator "RC"]
[PlyCount "84"]
[EventDate "2019.06.19"]
[EventType "team-tourn"]
[EventCountry "CHN"]
[SourceTitle "playchess.com"]
[Source "ChessBase"]
[SourceQuality "1"]
[TimeControl "5400+30"]

1. d4 {[%emt 0:00:00]} Nf6 {[%emt 0:00:00]} 2. Nf3 {[%emt 0:00:00]} e6 {[%emt 0:01:12]} 3. Bf4 {[%emt 0:00:05]} b6 {[%emt 0:01:05]} 4. e3 {[%emt 0:00:14]} Bb7 {[%emt 0:00:05]} 5. Be2 {[%emt 0:00:35]} g6 {[%emt 0:01:49]} 6. O-O {[%emt 0:01:09]} Bg7 {[%emt 0:00:07]} 7. Nbd2 {[%emt 0:00:34]} O-O {[%emt 0:00:12]} 8. h3 {[%emt 0:00:38]} d6 {[%emt 0:00:21]} 9. c3 {[%emt 0:02:42]} Nbd7 {[%emt 0:00:17]} 10. a4 {[%emt 0:01:45]} a6 {[%emt 0:00:47]} 11. Nc4 {[%emt 0:04:30]} Qe7 {[%emt 0:01:46]} 12. Bh2 {[%emt 0:01:05]} Rfd8 {[%emt 0:01:10]} 13. Qb3 {[%emt 0:02:11]} h5 {[%emt 0:04:26]} 14. Rfd1 {[%emt 0:04:00]} Nh7 {[%emt 0:04:29]} 15. Bg3 {[%emt 0:09:12]} Ndf6 {[%emt 0:03:10]} 16. Ncd2 {[%emt 0:03:54]} a5 {[%emt 0:16:06]} 17. Qc2 {[%emt 0:01:01]} Nd7 {[%emt 0:05:43]} 18. e4 {[%emt 0:05:06]} e5 {[%emt 0:04:22]} 19. Bd3 {[%emt 0:07:02]} Bf6 {[%emt 0:00:56]} 20. h4 {[%emt 0:02:19]} Nhf8 {[%emt 0:01:27]} 21. Nc4 {[%emt 0:02:10]} Ne6 {[%emt 0:00:16]} 22. Bf1 {[%emt 0:05:16]} Bg7 {[%emt 0:01:53]} 23. Ne3 {[%emt 0:01:45]} Nf6 {[%emt 0:00:14]} 24. dxe5 {[%emt 0:01:46]} Nxe4 {[%emt 0:00:40]} 25. exd6 {[%emt 0:00:45]} cxd6 {[%emt 0:00:01]} 26. Bh2 {[%emt 0:00:12]} d5 {[%emt 0:00:19]} 27. Bd3 {[%emt 0:06:21]} N4c5 {[%emt 0:00:01]} 28. Re1 {[%emt 0:05:24]} d4 {[%emt 0:00:50]} 29. Nxd4 {[%emt 0:00:59]} Nxd4 {[%emt 0:07:08]} 30. cxd4 {[%emt 0:00:13]} Nxd3 {[%emt 0:00:07]} 31. Qxd3 {[%emt 0:03:45]} Rxd4 {[%emt 0:00:12]} 32. Qb5 {[%emt 0:01:15]} Rb4 {[%emt 0:05:59]} 33. Qd3 {[%emt 0:04:33]} Rd8 {[%emt 0:01:51]} 34. Nd5 {[%emt 0:04:34]} Qxh4 {[%emt 0:05:44]} 35. Nxb4 {[%emt 0:02:18]} Rxd3 {[%emt 0:00:04]} 36. Nxd3 {[%emt 0:00:01]} Qg4 {[%emt 0:00:36]} 37. Re8+ {[%emt 0:01:05]} Kh7 {[%emt 0:00:05]} 38. Ne1 {[%emt 0:00:12]} h4 {[%emt 0:02:43]} 39. Rc1 {[%emt 0:07:12]} h3 {[%emt 0:03:32]} 40. Re3 {[%emt 0:01:34]} hxg2 {[%emt 0:01:41]} 41. Rc7 {[%emt 0:01:31]} Bd5 {[%emt 0:00:30]} 42. Rg3 {[%emt 0:00:26]} Qe2 {[%emt 0:01:31]} 0-1

[Event "Chinese Chess League Men 2019"]
[Site "Daqing"]
[Date "2019.06.27"]
[Round "9.4"]
[White "Yuan, Qingyu"]
[Black "Xie, Kaifan"]
[Result "1-0"]
[ECO "D38"]
[WhiteElo "2355"]
[BlackElo "1969"]
[Annotator "RC"]
[PlyCount "99"]
[EventDate "2019.06.19"]
[EventType "team-tourn"]
[EventCountry "CHN"]
[SourceTitle "playchess.com"]
[Source "ChessBase"]
[SourceQuality "1"]
[TimeControl "5400+30"]

1. Nf3 {[%emt 0:00:00]} Nf6 {[%emt 0:00:00]} 2. c4 {[%emt 0:00:00]} e6 {[%emt 0:01:05]} 3. Nc3 {[%emt 0:00:00]} d5 {[%emt 0:01:44]} 4. d4 {[%emt 0:00:00]} Bb4 {[%emt 0:02:56]} 5. Qa4+ {[%emt 0:01:19]} Nc6 {[%emt 0:01:42]} 6. e3 {[%emt 0:00:44]} O-O {[%emt 0:01:39]} 7. Bd2 {[%emt 0:03:53]} Bd7 {[%emt 0:07:54]} 8. Qc2 {[%emt 0:01:25]} Ne7 {[%emt 0:03:37]} 9. a3 {[%emt 0:07:39]} Bxc3 {[%emt 0:00:40]} 10. Bxc3 {[%emt 0:00:12]} dxc4 {[%emt 0:01:53]} 11. Bxc4 {[%emt 0:00:16]} Bc6 {[%emt 0:00:34]} 12. Qe2 {[%emt 0:01:32]} Ne4 {[%emt 0:01:13]} 13. Rc1 {[%emt 0:06:21]} Nxc3 {[%emt 0:03:33]} 14. Rxc3 {[%emt 0:00:08]} Nf5 {[%emt 0:00:15]} 15. O-O {[%emt 0:01:18]} Bxf3 {[%emt 0:09:07]} 16. Qxf3 {[%emt 0:00:14]} c6 {[%emt 0:00:06]} 17. Bd3 {[%emt 0:04:39]} Ne7 {[%emt 0:01:18]} 18. b4 {[%emt 0:06:56]} Rc8 {[%emt 0:01:16]} 19. Rfc1 {[%emt 0:01:00]} Qd7 {[%emt 0:02:44]} 20. h4 {[%emt 0:01:49]} h6 {[%emt 0:05:28]} 21. Qe4 {[%emt 0:02:20]} f5 {[%emt 0:02:49]} 22. Qe5 {[%emt 0:04:50]} Qd5 {[%emt 0:03:31]} 23. Qf4 {[%emt 0:01:13]} Kh8 {[%emt 0:01:34]} 24. b5 {[%emt 0:11:33]} Qd7 {[%emt 0:03:22]} 25. bxc6 {[%emt 0:02:14]} Rxc6 {[%emt 0:01:54]} 26. Bb5 {[%emt 0:01:18]} Nd5 {[%emt 0:04:44]} 27. Bxc6 {[%emt 0:00:21]} bxc6 {[%emt 0:00:33]} 28. Qe5 {[%emt 0:00:59]} Nxc3 {[%emt 0:00:36]} 29. Rxc3 {[%emt 0:00:05]} Rc8 {[%emt 0:00:50]} 30. a4 {[%emt 0:04:47]} Kg8 {[%emt 0:00:52]} 31. a5 {[%emt 0:01:54]} Kf7 {[%emt 0:05:17]} 32. Rb3 {[%emt 0:03:22]} Qc7 {[%emt 0:08:13]} 33. Qc5 {[%emt 0:01:40]} Rb8 {[%emt 0:03:52]} 34. Rxb8 {[%emt 0:02:06]} Qxb8 {[%emt 0:02:05]} 35. Qxc6 {[%emt 0:00:07]} Qb1+ {[%emt 0:00:13]} 36. Kh2 {[%emt 0:00:04]} Qa2 {[%emt 0:03:40]} 37. Qc7+ {[%emt 0:00:06]} Kf6 {[%emt 0:01:04]} 38. Kg3 {[%emt 0:01:51]} Qe2 {[%emt 0:00:36]} 39. Qxa7 {[%emt 0:07:16]} Qg4+ {[%emt 0:00:21]} 40. Kh2 {[%emt 0:00:06]} Qxh4+ {[%emt 0:00:13]} 41. Kg1 {[%emt 0:00:04]} Qg4 {[%emt 0:01:08]} 42. g3 {[%emt 0:00:26]} Qd1+ {[%emt 0:01:35]} 43. Kg2 {[%emt 0:00:02]} Qb1 {[%emt 0:02:21]} 44. Qa8 {[%emt 0:00:08]} Qb5 {[%emt 0:02:34]} 45. a6 {[%emt 0:00:44]} Qa4 {[%emt 0:03:03]} 46. Qb7 {[%emt 0:00:10]} g5 {[%emt 0:00:38]} 47. a7 {[%emt 0:00:04]} h5 {[%emt 0:00:33]} 48. a8=Q {[%emt 0:00:06]} Qxa8 {[%emt 0:00:05]} 49. Qxa8 {[%emt 0:00:03]} h4 {[%emt 0:00:04]} 50. Qf8+ {[%emt 0:00:11]} 1-0